bitfinex/quotes_ETHUSD_20241023
["timestamp","ask_amount","ask_price","bid_price","bid_amount"]
[1729691394607,3.86999,2584.0,2583.5,7.74121]
[1729691394812,3.87013,2583.9,2583.5,3.8706]
[1729691395024,3.86997,2584.0,2583.4,0.8071]
[1729691395172,7.74004,2584.0,2583.5,7.74125]
[1729691395372,3.86997,2584.0,2583.5,7.74125]
[1729691395715,14.08688,2584.8,2584.4,0.8071]
[1729691395912,3.86859,2585.0,2584.4,0.8071]
[1729691396076,3.86859,2585.0,2584.5,3.86913]
[1729691396554,3.86863,2584.9,2584.5,3.86913]
[1729691396831,3.86848,2585.0,2584.5,7.73825]
[1729691397209,3.86848,2585.0,2584.5,3.92715176]
[1729691397210,7.73708,2585.0,2584.5,3.92715176]
[1729691397454,3.86848,2585.0,2584.5,7.79630176]
[1729691397626,8.1470144,2585.1,2584.6,3.86897]
[1729691398243,0.005,2585.1,2585.0,3.86847]
[1729691398901,0.005,2585.1,2585.0,4.64327]
[1729691400939,0.005,2585.1,2585.0,0.7748]
[1729691401230,0.005,2585.1,2585.0,4.64327]
[1729691401436,0.005,2585.1,2585.0,0.7748]
[1729691401722,0.005,2585.1,2585.0,5.494464]
[1729691402124,0.005,2585.1,2585.0,5.55248789]
[1729691411168,0.005,2585.1,2584.6,5.48321218]
[1729691411169,3.5135844,2585.1,2584.6,5.48321218]
[1729691411469,3.5085844,2584.9,2584.4,0.7539]
[1729691411699,3.5085844,2584.9,2584.5,3.86912]
[1729691411851,3.86849,2585.0,2584.4,4.62325]
[1729691412058,3.5085844,2584.9,2584.6,3.86905]
[1729691412258,3.86849,2585.0,2584.7,0.05802561]
[1729691412780,3.5085844,2584.9,2584.7,0.05802561]
[1729691413095,0.7651,2584.8,2584.7,0.05802561]
[1729691413389,4.63387,2584.8,2584.7,0.05802561]
[1729691413594,0.7651,2584.8,2583.9,0.7967]
[1729691413759,3.5085844,2584.2,2583.9,0.7967]
[1729691414095,3.86981,2584.1,2583.7,4.69836]
[1729691414398,3.5085844,2584.2,2583.8,3.87026]
[1729691414602,4.63464,2584.3,2583.9,3.8701]
[1729691414891,4.63464,2584.3,2584.0,0.058044]
[1729691415688,4.63463,2584.3,2584.0,0.058044]
[1729691415897,3.86993,2584.1,2583.5,3.87059]
[1729691416201,3.86993,2584.1,2583.6,3.87048]
[1729691416397,3.86993,2584.1,2583.7,3.87041]
[1729691416694,7.3782644,2584.2,2583.7,7.74074]
[1729691416859,4.63471,2584.3,2583.8,3.87019]
[1729691417054,7.3779544,2584.4,2583.9,3.87002]
[1729691417678,3.86954,2584.3,2583.9,3.87002]
[1729691417879,8.1382844,2584.6,2584.0,3.86989]
[1729691418160,3.86923,2584.5,2584.0,7.73975]
[1729691418759,8.1382544,2584.6,2584.1,3.86979]
[1729691419682,3.87036,2583.8,2583.2,8.5333]
[1729691419888,7.3789444,2583.8,2583.2,4.66223]
[1729691420199,7.3789444,2583.8,2583.4,3.87085]
[1729691420200,3.87036,2583.8,2583.4,3.87085]
[1729691420382,7.3789444,2583.8,2583.3,0.466223]
[1729691420692,7.3789444,2583.8,2583.2,4.66228]
[1729691420693,3.87041,2583.7,2583.2,4.66228]
[1729691420895,7.3789444,2583.8,2583.3,3.87101]
[1729691421059,7.3789344,2583.8,2583.3,3.87101]
[1729691421265,3.87015,2583.9,2583.4,3.87078]
[1729691421490,3.87015,2583.9,2583.4,7.74155]
[1729691421798,0.7606,2584.3,2583.5,1.3412]
[1729691422101,0.7606,2584.3,2583.9,7.74003]
[1729691422258,3.86935,2584.5,2583.9,3.9280446]
[1729691422464,8.1427544,2584.6,2584.1,3.86973]
[1729691424263,3.86922,2584.5,2584.1,3.86973]
[1729691424483,3.86944,2584.4,2584.0,0.7869]
[1729691424688,7.3780244,2584.4,2584.0,0.7869]
[1729691425087,7.3780244,2584.4,2584.0,4.65684]
[1729691425277,3.5085844,2584.4,2584.0,5.51534346]
[1729691426598,7.3780344,2584.4,2584.0,0.85850346]
[1729691426801,3.5085844,2584.4,2584.0,4.72843346]
[1729691427398,3.5085844,2584.4,2584.0,0.85850346]
[1729691427601,3.5085844,2584.4,2583.9,3.9280746]
[1729691427813,3.5085844,2584.4,2584.0,3.86995]
[1729691427964,3.5085844,2584.4,2583.9,3.9280746]
[1729691428167,3.86977,2584.2,2583.9,0.0580446]
[1729691428367,3.5085844,2584.0,2583.9,0.0580446]
[1729691428574,3.86991,2584.1,2583.9,0.0580446]
[1729691428987,7.3780544,2584.4,2583.9,0.0580446]
[1729691429189,3.86968,2584.2,2583.9,0.0580446]
[1729691429392,7.73943,2584.2,2583.9,0.0580446]
[1729691429711,7.3782644,2584.2,2583.9,0.0580446]
[1729691430002,3.87023,2583.9,2583.5,0.7939]
[1729691430210,3.87023,2583.9,2583.5,3.8707]
[1729691430211,3.5085844,2583.8,2583.5,3.8707]
[1729691430505,3.5085844,2583.8,2583.3,4.68036314]
[1729691430506,3.5085844,2583.8,2583.3,8.55123314]
[1729691430812,7.3788944,2583.8,2583.3,5.53544645]
[1729691431018,3.5085844,2583.6,2583.3,0.05805314]
[1729691431303,7.3794444,2583.4,2582.8,0.7609]
[1729691431476,3.5085844,2583.2,2582.8,3.87175]
[1729691431875,0.07279077,2583.1,2582.8,3.87175]
[1729691432087,3.94411077,2583.1,2582.8,0.850461]
[1729691433280,0.07279077,2583.1,2582.8,0.850461]
[1729691433601,0.07279077,2583.1,2582.7,3.87189]
[1729691433806,3.94412077,2583.1,2582.6,0.81897352]
[1729691433982,0.07279077,2583.1,2582.8,3.87168]
[1729691434199,3.8711,2583.3,2582.8,3.87168]
[1729691434379,0.07268048,2583.0,2582.8,3.87168]
[1729691434738,3.5085844,2583.2,2582.7,3.87184]
[1729691434878,3.88012,2583.9,2582.6,0.81897352]
[1729691434879,3.5085844,2582.8,2582.6,0.05807352]
[1729691435081,8.1451744,2583.0,2582.6,0.05807352]
[1729691435301,0.07250164,2582.7,2582.6,3.93012352]
[1729691435501,0.7651,2583.0,2582.6,3.93004352]
[1729691435692,0.07250164,2582.7,2582.6,3.93004352]
[1729691435892,4.2736844,2583.0,2582.6,3.93004352]
[1729691436088,0.0724543,2582.7,2582.6,3.93004352]
[1729691436421,0.07003758,2582.7,2582.6,3.93013352]
[1729691436592,0.7651,2583.0,2582.6,3.93013352]
[1729691436789,0.07003758,2582.7,2582.6,3.93013352]
[1729691436995,0.7651,2583.0,2582.6,3.93013352]
[1729691437195,0.07003758,2582.7,2582.6,3.93013352]
[1729691437388,0.7651,2583.0,2582.6,3.93013352]
[1729691437691,0.07003758,2582.7,2582.6,3.93013352]
[1729691437907,0.7651,2583.0,2582.6,3.93013352]
[1729691438221,3.87162,2582.9,2582.6,0.05807352]
[1729691438431,3.94165758,2582.9,2582.6,0.05807352]
[1729691438587,0.07003758,2582.9,2582.6,0.05807352]
[1729691439290,3.94168758,2582.9,2582.6,0.05807352]
[1729691439492,3.87179,2582.8,2582.6,0.05807352]
[1729691439699,7.3803744,2582.8,2582.6,0.05807352]
[1729691439909,3.87179,2582.8,2582.6,0.05807352]
[1729691440107,3.57862198,2582.7,2582.0,3.87287]
[1729691440416,7.45055198,2582.7,2582.2,3.87257]
[1729691440715,7.45055198,2582.7,2582.3,3.8725]
[1729691442394,7.45055198,2582.7,2582.4,0.05808063]
[1729691442624,7.3805144,2582.7,2582.4,0.05808063]
[1729691442789,3.87228,2582.5,2582.1,4.68021]
[1729691443336,7.3805144,2582.7,2582.2,3.87266]
[1729691443622,3.87184,2582.8,2582.4,3.87234]
[1729691444008,3.5085844,2582.9,2582.4,3.87234]
[1729691444204,4.63665,2583.0,2582.6,3.87206]
[1729691444407,3.5085844,2582.9,2582.5,3.87221]
[1729691444614,7.3802244,2582.9,2582.5,3.87221]
[1729691445423,7.3798944,2583.1,2582.6,4.69035]
[1729691445628,7.3798944,2583.1,2582.7,3.87185]
[1729691445929,11.2513144,2583.1,2582.6,4.69035]
[1729691446083,7.3798944,2583.1,2582.6,0.8183]
[1729691446282,3.87183,2582.8,2582.4,0.7543]
[1729691446530,3.87199,2582.7,2582.2,3.93062729]
[1729691446726,4.63693,2582.8,2582.2,4.48465242]
[1729691446927,3.5085844,2582.7,2582.2,3.93062729]
[1729691447090,7.3805744,2582.7,2582.2,3.93062729]
[1729691447296,3.87206,2582.6,2582.2,0.05807729]
[1729691448020,3.87228,2582.5,2582.2,0.05807729]
[1729691448226,3.93966759,2582.5,2582.2,0.05807729]
[1729691448430,7.44825199,2582.5,2582.2,0.05807729]
[1729691448933,3.93966759,2582.5,2582.2,0.05807729]
[1729691449129,7.44825199,2582.5,2582.2,0.05807729]
[1729691449336,3.87251,2582.3,2582.2,0.05807729]
[1729691449500,3.57597199,2582.5,2582.2,0.05807729]
[1729691449501,3.87244,2582.4,2582.2,0.05807729]
[1729691449698,0.06734543,2582.3,2582.2,0.05807729]
[1729691450316,3.5085844,2582.7,2582.2,0.05807729]
[1729691450492,3.87192,2582.7,2582.3,3.87251]
[1729691450692,10.218,2582.9,2582.6,3.87199]
[1729691450936,0.7651,2583.0,2582.6,3.87198]
[1729691451290,4.63667,2583.0,2582.5,3.87219]
[1729691451507,3.87164,2582.9,2582.5,3.87219]
[1729691451712,7.3802244,2582.9,2582.5,3.87219]
[1729691451920,4.63657,2583.0,2582.6,3.87203]
[1729691452133,4.63657,2583.0,2582.5,4.80601517]
[1729691452336,3.5085844,2582.9,2582.3,4.6864]
[1729691452498,7.3805044,2582.7,2582.3,4.6864]
[1729691452690,3.5085844,2582.7,2582.3,4.6864]
[1729691453009,3.5085844,2582.7,2582.3,8.55885]
[1729691453211,3.5085844,2582.7,2582.3,9.42054273]
[1729691453397,3.5085844,2582.7,2582.3,5.54809273]
[1729691453595,3.5085844,2582.7,2582.3,9.42053273]
[1729691453891,3.87177,2582.8,2582.3,9.42053273]
[1729691454109,3.87177,2582.8,2582.4,3.87231]
[1729691454802,7.3805644,2582.7,2582.2,7.80321729]
[1729691455009,7.3805644,2582.7,2582.2,3.93063729]
[1729691455354,3.87208,2582.6,2582.2,3.93063729]
[1729691455630,3.87239,2582.4,2582.2,0.05807729]
[1729691456703,8.1447244,2582.5,2582.2,0.05807729]
[1729691456902,3.87236,2582.4,2582.2,0.05807729]
[1729691457350,3.5085844,2582.5,2582.2,0.05807729]
[1729691457649,3.87207,2582.6,2582.2,0.05807729]
[1729691457820,7.74422,2582.6,2582.2,0.05807729]
[1729691458343,7.74422,2582.6,2582.2,3.93064729]
[1729691458344,3.87207,2582.6,2582.2,3.93064729]
[1729691458547,3.5085844,2582.7,2582.2,3.93064729]
[1729691458548,3.5085844,2582.7,2582.3,3.87245]
[1729691459220,7.3805144,2582.7,2582.3,3.87245]
[1729691459607,0.7651,2582.8,2582.3,3.87245]
[1729691459815,3.5085844,2582.9,2582.5,3.87214]
[1729691460126,7.3752144,2582.9,2582.4,4.67078]
[1729691460507,3.87201,2582.7,2582.4,0.7985]
[1729691460709,3.87184,2582.8,2582.4,4.67086]
[1729691461625,3.5085844,2582.5,2582.1,4.74135709]
[1729691461957,7.3808544,2582.5,2582.1,0.86862709]
[1729691462114,3.5085844,2582.3,2581.9,0.86862709]
[1729691462308,7.3811044,2582.3,2581.9,0.7985]
[1729691462650,3.5085844,2582.3,2582.0,0.0703482]
[1729691462860,3.87263,2582.3,2582.0,0.07032598]
[1729691463224,0.06715039,2582.2,2582.0,0.07032598]
[1729691463549,3.87269,2582.2,2582.0,0.07032598]
[1729691463722,0.06713984,2582.1,2582.0,0.07032598]
[1729691464152,0.06713984,2582.1,2581.9,0.85659126]
[1729691464153,7.3814244,2582.1,2581.9,0.05809126]
[1729691464356,3.87296,2582.0,2581.9,0.05809126]
[1729691464862,3.93993112,2582.0,2581.9,0.05809126]
[1729691467335,0.06697112,2582.0,2581.9,0.05809126]
[1729691467746,0.06697112,2582.0,2581.8,0.7638]
[1729691467954,0.06659143,2581.9,2581.8,5.1077456]
[1729691468159,0.06659143,2581.9,2581.8,4.3439456]
[1729691468338,0.7651,2582.3,2581.8,8.2171156]
[1729691468533,8.51021,2582.3,2581.8,4.3439256]
[1729691468748,3.93927143,2582.2,2581.7,3.87338]
[1729691468938,3.87297,2582.0,2581.6,3.87355]
[1729691469135,3.87297,2582.0,2581.5,0.90162598]
[1729691469424,3.9398178,2581.9,2581.5,4.70499]
[1729691469827,0.0666178,2581.9,2581.6,3.87356]
[1729691470055,0.0666178,2581.9,2581.6,8.604919]
[1729691470258,6.87248,2582.4,2581.7,3.87333]
[1729691470444,0.06662835,2581.8,2581.7,4.69651]
[1729691470640,3.87253,2582.3,2581.8,3.87323]
[1729691470850,3.87253,2582.3,2581.9,3.87306]
[1729691471029,3.87253,2582.3,2581.9,4.729999]
[1729691471370,3.87253,2582.3,2581.9,0.856939]
[1729691471554,3.87253,2582.3,2581.9,4.730039]
[1729691472168,4.63742,2582.5,2581.9,4.730039]
[1729691472488,4.63742,2582.5,2582.0,3.87284]
[1729691472489,7.74463,2582.5,2582.0,3.87284]
[1729691472689,3.87231,2582.5,2582.0,4.7331279]
[1729691472849,3.87231,2582.5,2582.1,0.7623]
[1729691473241,7.74462,2582.5,2582.1,0.7623]
[1729691473435,3.87251,2582.4,2582.1,0.7623]
[1729691473683,7.74527,2582.3,2581.9,3.87307]
[1729691473841,3.87263,2582.3,2581.9,0.462717]
[1729691474037,3.87263,2582.3,2581.8,0.7541]
[1729691474038,3.87295,2582.1,2581.8,0.7541]
[1729691474365,4.63649,2582.2,2581.6,3.87344]
[1729691474549,3.87292,2582.1,2581.6,3.87356]
[1729691474877,3.87283,2582.1,2581.6,3.87356]
[1729691475051,3.87283,2582.1,2581.7,0.8089]
[1729691475240,0.01,2582.7,2581.6,3.87356]
[1729691475241,0.7651,2583.1,2582.3,0.8089]
[1729691475446,0.7651,2583.4,2582.9,3.8715]
[1729691475640,4.63597,2583.4,2582.9,3.8715]
[1729691475874,3.87065,2583.6,2582.9,3.8715]
[1729691476037,4.63575,2583.6,2583.0,3.87131]
[1729691476238,4.63575,2583.6,2582.8,0.8089]
[1729691476239,0.7651,2583.6,2583.1,3.87124]
[1729691476466,4.63573,2583.6,2583.1,3.87124]
[1729691476951,4.63573,2583.6,2582.8,0.8089]
[1729691476952,3.87094,2583.4,2582.8,4.68064]
[1729691477287,3.87094,2583.4,2582.9,3.9296048]
[1729691477591,4.63579,2583.6,2582.9,3.9295948]
[1729691477891,3.87146,2583.0,2582.9,0.0580648]
[1729691478254,0.05744012,2583.0,2582.2,4.66803]
[1729691478466,3.87178,2582.8,2582.2,4.66791]
[1729691478660,3.87178,2582.8,2582.3,3.87249]
[1729691478855,0.05739269,2582.7,2582.3,3.87249]
[1729691479074,3.87178,2582.8,2582.4,3.87235]
[1729691479288,0.05739269,2582.6,2582.4,3.87235]
[1729691479595,3.87162,2582.9,2582.4,3.87225]
[1729691479801,0.05739269,2582.5,2582.4,3.87225]
[1729691479959,7.74243,2583.2,2582.4,2.20522667]
[1729691480158,0.05731362,2583.1,2582.7,7.74374]
[1729691480373,0.05731362,2583.1,2582.9,3.87154]
[1729691480668,4.63173,2583.3,2582.9,3.87154]
[1729691480983,3.87103,2583.3,2582.9,4.66694]
[1729691481356,0.05731362,2583.2,2582.9,0.7954]
[1729691481590,3.87103,2583.3,2582.9,0.7954]
[1729691481889,0.05738215,2583.1,2582.9,4.667]
[1729691482097,4.63153,2583.5,2582.9,1.64928]
[1729691482391,3.92836215,2583.4,2582.9,4.66696]
[1729691482591,3.87125,2583.2,2582.7,4.66671]
[1729691482941,3.87131,2583.1,2582.5,8.53914]
[1729691483069,4.63665,2583.0,2582.5,9.48484433]
[1729691483468,4.63665,2583.0,2582.6,3.87197]
[1729691484000,0.05783555,2582.9,2582.6,3.87197]
[1729691484160,0.05783555,2582.9,2582.5,5.61271433]
[1729691484855,0.05783555,2582.9,2582.6,3.87199]
[1729691485084,0.05783555,2582.9,2582.5,4.66701]
[1729691485473,3.87176,2582.8,2582.4,3.87231]
[1729691485669,3.92946555,2582.9,2582.5,3.8722]
[1729691485885,0.05767214,2582.7,2582.5,7.74435]
[1729691486203,0.05767742,2582.6,2582.3,4.68377667]
[1729691486360,3.87176,2582.8,2582.4,3.87234]
[1729691486564,0.05767742,2582.7,2582.4,3.87234]
[1729691486782,3.87176,2582.8,2582.3,4.68377667]
[1729691486985,0.05767742,2582.6,2582.3,3.93050667]
[1729691487294,3.87176,2582.8,2582.3,0.05807667]
[1729691487502,14.08908,2583.3,2582.4,4.64956]
[1729691487503,0.05766687,2582.5,2582.4,4.64956]
[1729691487703,3.87133,2583.1,2582.6,3.87193]
[1729691487871,7.74275,2583.1,2582.6,3.87193]
[1729691488073,0.05765634,2583.0,2582.6,3.87193]
[1729691488801,3.92921634,2583.0,2582.6,3.87193]
[1729691489199,0.05765634,2583.0,2582.6,3.87193]
[1729691489697,3.92911634,2583.0,2582.4,4.64945]
[1729691490103,3.87161,2582.9,2582.4,4.64945]
[1729691490612,0.05765634,2582.8,2582.4,4.64945]
[1729691490820,3.87216,2582.6,2582.3,0.05807667]
[1729691490981,0.7583,2582.8,2582.3,0.05807667]
[1729691491180,0.05762471,2582.5,2582.3,0.05807667]
[1729691491383,3.87197,2582.7,2582.3,0.05807667]
[1729691491683,0.05762471,2582.4,2582.3,0.05807667]
[1729691492024,3.92998471,2582.4,2582.3,0.05807667]
[1729691492812,0.05762471,2582.4,2582.3,0.05807667]
[1729691493921,0.05762471,2582.4,2582.3,3.93058667]
[1729691494083,0.05762471,2582.4,2582.3,4.71090334]
[1729691494281,3.87207,2582.6,2582.3,0.83839334]
[1729691494522,0.05717127,2582.4,2582.3,0.05807667]
[1729691494679,3.87236,2582.4,2582.3,0.05807667]
[1729691494887,3.92953127,2582.4,2582.3,0.05807667]
[1729691496609,0.05717127,2582.4,2582.3,0.05807667]
[1729691497212,3.87233,2582.5,2582.3,0.05807667]
[1729691497416,0.05719236,2582.4,2582.3,0.05807667]
[1729691497716,3.92955236,2582.4,2582.3,0.05807667]
[1729691499121,3.87263,2582.3,2581.8,4.67805]
[1729691499655,3.87298,2582.0,2581.6,3.87354]
[1729691499862,0.05718183,2581.9,2581.7,0.05809082]
[1729691500154,3.93037183,2581.9,2581.7,0.05809082]
[1729691500850,0.05718183,2581.9,2581.7,0.05809082]
[1729691501958,0.05718183,2581.9,2581.7,3.93148082]
[1729691502463,0.05718183,2581.8,2581.7,3.93148082]
[1729691502653,3.87282,2582.1,2581.7,4.7938629]
[1729691502961,0.05718183,2582.0,2581.7,4.7938629]
[1729691503160,0.05718183,2582.0,2581.8,3.87325]
[1729691503458,3.87268,2582.2,2581.8,3.87325]
[1729691503657,0.05705523,2582.1,2581.8,3.87325]
[1729691504162,3.92986523,2582.1,2581.7,0.86238208]
[1729691504374,3.92986523,2582.1,2581.6,3.87346]
[1729691504537,3.87301,2582.0,2581.6,3.87346]
[1729691505142,0.05705523,2581.9,2581.6,3.87346]
[1729691505574,0.05705523,2581.9,2581.5,0.8188]
[1729691505775,0.05705523,2581.9,2581.5,4.69245]
[1729691506089,0.05705523,2581.9,2581.6,3.93163862]
[1729691506787,0.05705523,2581.9,2581.7,7.38573118]
[1729691507001,0.05705523,2581.9,2581.8,4.62616]
[1729691507151,3.87237,2582.4,2582.0,3.87294]
[1729691508094,3.87237,2582.4,2582.0,3.87289]
[1729691508289,0.05499868,2582.3,2581.9,3.87309]
[1729691508460,0.05499868,2582.3,2581.9,5.07423412]
[1729691508879,0.05499868,2582.3,2581.9,1.20114412]
[1729691508880,3.92751868,2582.3,2581.9,1.20114412]
[1729691509791,4.63784,2582.2,2581.6,3.87344]
[1729691509953,3.8729,2582.1,2581.6,3.87344]
[1729691510158,3.8729,2582.1,2580.9,3.87453]
[1729691510159,4.63891,2581.5,2580.9,3.87453]
[1729691510397,3.874,2581.4,2580.6,0.8226]
[1729691510692,3.92907433,2581.4,2580.7,7.74974]
[1729691510894,0.05510433,2581.4,2580.9,3.87458]
[1729691511054,0.05510433,2581.4,2581.0,0.05811063]
[1729691513094,3.8741,2581.3,2581.0,0.05811063]
[1729691513298,3.87425,2581.2,2580.6,0.8226]
[1729691513519,3.87434,2581.1,2580.7,0.469781]
[1729691513721,3.92887366,2581.1,2580.6,0.8226]
[1729691514526,3.92897366,2581.1,2580.6,0.8226]
[1729691514689,3.92893366,2581.1,2580.6,0.8226]
[1729691515284,7.74931,2580.9,2580.6,0.8226]
[1729691515491,3.87461,2580.9,2580.6,0.8226]
[1729691515909,0.0544861,2580.8,2580.6,0.8226]
[1729691517920,3.87491,2580.7,2580.2,1.3759]
[1729691518113,0.05434336,2580.7,2580.3,0.53097621]
[1729691518419,3.87489,2580.8,2580.3,0.60847738]
[1729691518628,0.05434336,2580.6,2580.3,0.53097621]
[1729691518826,3.87476,2580.8,2580.3,0.53097621]
[1729691519012,0.05434336,2580.5,2580.3,4.48398739]
[1729691519191,3.87463,2580.9,2580.4,1.80424574]
[1729691519688,3.87438,2581.1,2580.5,0.07750117]
[1729691519889,3.87436,2581.1,2580.6,0.88882015]
[1729691520508,3.87416,2581.2,2580.6,4.76380015]
[1729691520730,3.87395,2581.4,2580.8,4.67678]
[1729691520938,3.87395,2581.4,2580.9,3.8746]
[1729691521141,7.74793,2581.4,2580.8,0.8021]
[1729691521343,3.87419,2581.2,2580.8,0.8021]
[1729691521721,3.87419,2581.2,2580.9,0.554084]
[1729691521936,3.87395,2581.4,2580.9,0.554084]
[1729691521937,3.87402,2581.3,2580.9,0.554084]
[1729691522138,3.87418,2581.2,2580.9,0.554084]
[1729691522547,3.87374,2581.5,2580.8,0.8021]
[1729691522749,3.87485,2580.8,2580.6,0.05812015]
[1729691523223,0.05382032,2580.7,2580.6,0.05812015]
[1729691523612,3.87485,2580.8,2580.6,0.05812015]
[1729691523810,3.92881488,2580.7,2580.6,0.05812015]
[1729691527214,0.05390488,2580.7,2580.6,0.05812015]
[1729691527653,3.87478,2580.8,2580.6,0.05812015]
[1729691527860,3.92862455,2580.7,2580.6,0.05812015]
[1729691528670,3.92862455,2580.7,2580.0,1.0]
[1729691528671,0.7651,2580.6,2580.0,1.0]
[1729691528857,4.64085,2580.2,2580.0,1.0]
[1729691529056,3.87581,2580.1,2580.0,1.0]
[1729691529253,0.05321223,2580.1,2580.0,1.0]
[1729691529568,3.87564,2580.3,2580.0,1.0]
[1729691529775,0.05321223,2580.1,2580.0,1.0]
[1729691530079,3.8756,2580.3,2580.0,1.0]
[1729691530304,0.05321223,2580.1,2580.0,1.0]
[1729691530484,7.75122,2580.3,2580.0,1.0]
[1729691530791,0.05321223,2580.1,2580.0,1.0]
[1729691531002,3.87554,2580.3,2580.0,1.0]
[1729691531160,0.05310646,2580.1,2580.0,1.0]
[1729691531476,3.87554,2580.3,2580.0,1.0]
[1729691531680,0.05310646,2580.1,2580.0,2.274711]
[1729691531861,3.87534,2580.5,2580.0,2.274711]
[1729691532063,3.87489,2580.8,2580.4,0.7871]
[1729691532308,3.87489,2580.8,2580.2,3.93371131]
[1729691532309,3.87476,2580.8,2580.2,0.05813131]
[1729691532472,3.87525,2580.5,2580.2,0.87913131]
[1729691532995,3.87561,2580.3,2580.0,1.0]
[1729691533299,0.7522,2580.4,2580.0,1.0]
[1729691533500,3.87574,2580.2,2580.0,1.0]
[1729691534380,3.87581,2580.1,2580.0,1.0]
[1729691534798,4.62759,2580.4,2580.0,1.0]
[1729691534965,0.7522,2580.4,2580.0,1.0]
[1729691535169,3.87581,2580.1,2580.0,1.0]
[1729691536229,7.75147,2580.2,2580.0,1.0]
[1729691536393,3.87566,2580.2,2580.0,1.0]
[1729691536792,3.87571,2580.2,2580.0,1.0]
[1729691537615,3.87572,2580.2,2580.0,1.0]
[1729691537818,3.87553,2580.3,2580.0,1.0]
[1729691537994,3.87581,2580.1,2580.0,1.0]
[1729691538391,3.87553,2580.3,2580.0,1.0]
[1729691538730,3.87573,2580.2,2580.0,1.0]
[1729691538940,3.87492,2580.7,2580.2,3.87565]
[1729691539109,4.48079768,2581.3,2580.1,0.7948]
[1729691539110,3.87447,2581.0,2580.5,3.8752]
[1729691539318,3.87429,2581.2,2580.6,4.66979]
[1729691539617,0.7651,2581.3,2580.7,0.854499]
[1729691539618,3.87457,2581.0,2580.7,0.854499]
[1729691539841,3.87457,2581.0,2580.6,0.7948]
[1729691540411,3.87462,2580.9,2580.6,0.7948]
[1729691540803,3.51784441,2580.9,2580.6,0.7948]
[1729691541110,3.51784441,2580.9,2580.3,4.74002882]
[1729691541111,3.87493,2580.7,2580.3,4.74002882]
[1729691541294,3.87477,2580.8,2580.3,4.74002882]
[1729691541497,3.87477,2580.8,2580.3,5.60863238]
[1729691541933,3.87492,2580.7,2580.3,5.60863238]
[1729691542230,3.87477,2580.8,2580.3,9.48408238]
[1729691542431,3.87477,2580.8,2580.3,5.60863238]
[1729691542738,3.87477,2580.8,2580.4,3.87534]
[1729691543032,7.28294441,2581.3,2580.4,1.02590211]
[1729691543284,11.51325,2581.3,2580.8,3.87476]
[1729691543499,3.87434,2581.1,2580.7,4.64859]
[1729691543846,3.87446,2581.0,2580.7,0.7737]
[1729691545389,3.87462,2580.9,2580.7,0.7737]
[1729691545571,3.87462,2580.9,2580.4,5.62984724]
[1729691545749,4.63972,2580.9,2580.5,0.95633661]
[1729691545947,4.63972,2580.9,2580.4,4.68144]
[1729691546284,0.7651,2581.1,2580.4,0.8061]
[1729691546495,3.87425,2581.2,2580.6,3.87497]
[1729691546794,7.39221441,2581.1,2580.5,3.8752]
[1729691547212,3.87448,2581.0,2580.5,3.8752]
[1729691547501,3.87448,2581.0,2580.5,7.80843601]
[1729691547665,11.15705441,2581.3,2580.5,3.93323601]
[1729691547865,3.87438,2581.1,2580.6,3.87503]
[1729691548067,3.87447,2581.0,2580.5,3.93326601]
[1729691548308,3.87438,2581.1,2580.6,3.87506]
[1729691549008,15.03118441,2581.3,2580.7,3.87479]
[1729691549301,3.87426,2581.2,2580.7,3.87479]
[1729691549961,11.15704441,2581.3,2580.8,3.87464]
[1729691550167,3.8741,2581.3,2580.9,0.805]
[1729691551709,1.16924348,2581.5,2580.9,1.660427]
[1729691551912,1.16924348,2581.5,2580.9,0.805]
[1729691551913,7.39186441,2581.3,2580.9,0.805]
[1729691552210,3.87416,2581.2,2580.7,3.87489]
[1729691552369,3.87432,2581.1,2580.7,3.87489]
[1729691552772,3.87417,2581.2,2580.7,3.87489]
[1729691552996,8.15678441,2581.5,2580.7,0.8618516]
[1729691553197,0.05360884,2581.1,2580.9,3.87448]
[1729691553506,3.87387,2581.4,2581.0,3.87444]
[1729691553668,0.05366701,2581.0,2580.9,3.87459]
[1729691553863,6.87369,2581.6,2581.1,3.8743]
[1729691554084,6.87356,2581.6,2581.2,4.68459]
[1729691554390,6.51784441,2581.7,2581.2,0.8105]
[1729691554590,7.39177441,2581.4,2581.0,4.68495]
[1729691554764,3.87393,2581.4,2581.0,4.68495]
[1729691555743,3.87393,2581.4,2581.0,0.8105]
[1729691556078,3.87393,2581.4,2580.5,3.93324601]
[1729691556079,3.87401,2581.3,2580.7,4.68541]
[1729691556394,3.87416,2581.2,2580.7,5.5471826]
[1729691556592,3.87416,2581.2,2580.7,0.8105]
[1729691556593,3.87434,2581.1,2580.7,0.8105]
[1729691556773,3.87457,2581.0,2580.7,0.8105]
[1729691556974,0.7549,2581.1,2580.7,0.8105]
[1729691557185,3.87433,2581.1,2580.7,4.6854]
[1729691557596,3.87424,2581.2,2580.8,3.87473]
[1729691557802,3.87399,2581.4,2580.9,3.8746]
[1729691558067,3.87401,2581.3,2580.8,4.730753]
[1729691558318,3.87401,2581.3,2580.7,4.68532]
[1729691558614,3.87427,2581.2,2580.7,4.68532]
[1729691558987,3.87432,2581.1,2580.7,4.68532]
[1729691559375,3.87434,2581.1,2580.7,0.8105]
[1729691560575,3.87434,2581.1,2580.7,4.68539]
[1729691560795,3.8745,2581.0,2580.7,0.8105]
[1729691561204,3.51784441,2581.6,2580.8,0.7693]
[1729691561377,3.87426,2581.2,2580.8,0.7693]
[1729691561816,3.87426,2581.2,2580.8,4.64406]
[1729691561990,3.87433,2581.1,2580.8,0.7693]
[1729691562192,7.39178441,2581.4,2580.8,0.7693]
[1729691562388,3.87418,2581.2,2580.8,4.64406]
[1729691563612,3.87402,2581.3,2580.8,4.64396]
[1729691563814,3.87423,2581.2,2580.8,4.64396]
[1729691564291,3.87402,2581.3,2580.9,3.8746]
[1729691564491,3.87385,2581.5,2580.9,3.8746]
[1729691564821,3.87381,2581.5,2581.1,3.8743]